[Event "Titled Tuesday Blitz August 17 2021"]
[White "Ivic, Velimir"]
[Black "Oganisian, Roman"]
[WhiteFideId "950122"]
[BlackFideId "4153006"]
[WhiteElo "2509"]
[BlackElo "2204"]
[Result "1-0"]
[Round "04"]
[TimeControl "180+1"]
[Date "2021.08.17"]
[WhiteClock "0:00:12"]
[BlackClock "0:00:03"]

1. e4 {[%clk 0:02:36]}  e6 {[%clk 0:03:00]} 2. d4 {[%clk 0:02:35]}  d5 {[%clk 0:03:01]} 3. Nc3 {[%clk 0:02:30]}  Nf6 {[%clk 0:03:00]} 4. e5 {[%clk 0:02:22]}  Nfd7 {[%clk 0:03:00]} 5. Qh5 {[%clk 0:02:22]}  c5 {[%clk 0:02:54]} 6. Nf3 {[%clk 0:02:21]}  g6 {[%clk 0:02:42]} 7. Qg4 {[%clk 0:02:20]}  Nc6 {[%clk 0:02:33]} 8. dxc5 {[%clk 0:02:13]}  Ndxe5 {[%clk 0:02:19]} 9. Nxe5 {[%clk 0:02:10]}  Nxe5 {[%clk 0:02:20]} 10. Qg3 {[%clk 0:02:03]}  Bg7 {[%clk 0:02:02]} 11. Bf4 {[%clk 0:01:59]}  f6 {[%clk 0:01:24]} 12. O-O-O {[%clk 0:01:21]}  Qa5 {[%clk 0:01:21]} 13. Bxe5 {[%clk 0:01:03]}  fxe5 {[%clk 0:01:20]} 14. Bb5+ {[%clk 0:01:02]}  Bd7 {[%clk 0:01:11]} 15. Bxd7+ {[%clk 0:01:02]}  Kxd7 {[%clk 0:01:12]} 16. Nxd5 {[%clk 0:00:44]}  exd5 {[%clk 0:01:13]} 17. Rxd5+ {[%clk 0:00:45]}  Kc6 {[%clk 0:00:27]} 18. Rd6+ {[%clk 0:00:31]}  Kc7 {[%clk 0:00:26]} 19. Qb3 {[%clk 0:00:31]}  Raf8 {[%clk 0:00:18]} 20. Rhd1 {[%clk 0:00:29]}  Bh6+ {[%clk 0:00:15]} 21. Kb1 {[%clk 0:00:29]}  Kb8 {[%clk 0:00:11]} 22. Rd7 {[%clk 0:00:15]}  b6 {[%clk 0:00:08]} 23. Qd5 {[%clk 0:00:13]}  Qa6 {[%clk 0:00:06]} 24. Qd6+ {[%clk 0:00:12]}  Ka8 {[%clk 0:00:06]} 25. Qd5+ {[%clk 0:00:12]}  Kb8 {[%clk 0:00:06]} 26. Qxe5+ {[%clk 0:00:13]}  Ka8 {[%clk 0:00:05]} 27. Qe4+ {[%clk 0:00:11]}  Kb8 {[%clk 0:00:05]} 28. c6 {[%clk 0:00:11]}  Rc8 {[%clk 0:00:04]} 29. c7+ {[%clk 0:00:11]}  Rxc7 {[%clk 0:00:04]} 30. Rxc7 {[%clk 0:00:12]}  Kxc7 {[%clk 0:00:03]} 31. Qe5+ {[%clk 0:00:12]}  Kc8 {[%clk 0:00:03]} 32. Qxh8+ {[%clk 0:00:12]} 1-0


[Site "https://www.chess.com"]

[Event "Titled Tuesday Blitz August 17 2021"]
[White "Janaszak, Dawid"]
[Black "Ivanov, Oleg"]
[WhiteFideId "1119206"]
[BlackFideId "4103114"]
[WhiteElo "2332"]
[BlackElo "2694"]
[Result "0-1"]
[Round "04"]
[TimeControl "180+1"]
[Date "2021.08.17"]
[WhiteClock "0:00:04"]
[BlackClock "0:00:02"]

1. d4 {[%clk 0:03:00]}  d5 {[%clk 0:02:54]} 2. Nf3 {[%clk 0:02:57]}  Nf6 {[%clk 0:02:53]} 3. c4 {[%clk 0:02:57]}  e6 {[%clk 0:02:52]} 4. g3 {[%clk 0:02:56]}  Be7 {[%clk 0:02:47]} 5. Bg2 {[%clk 0:02:56]}  O-O {[%clk 0:02:48]} 6. O-O {[%clk 0:02:56]}  c6 {[%clk 0:02:45]} 7. Nbd2 {[%clk 0:02:52]}  Nbd7 {[%clk 0:02:45]} 8. Qc2 {[%clk 0:02:52]}  b6 {[%clk 0:02:43]} 9. e4 {[%clk 0:02:49]}  dxc4 {[%clk 0:02:43]} 10. Nxc4 {[%clk 0:02:49]}  Bb7 {[%clk 0:02:43]} 11. Rd1 {[%clk 0:02:45]}  c5 {[%clk 0:02:41]} 12. e5 {[%clk 0:02:29]}  Nd5 {[%clk 0:02:39]} 13. Nd6 {[%clk 0:02:18]}  Bxd6 {[%clk 0:02:37]} 14. exd6 {[%clk 0:02:19]}  Rc8 {[%clk 0:01:54]} 15. dxc5 {[%clk 0:02:01]}  Rxc5 {[%clk 0:01:47]} 16. Qa4 {[%clk 0:01:51]}  a5 {[%clk 0:01:17]} 17. Ng5 {[%clk 0:01:38]}  N7f6 {[%clk 0:01:06]} 18. Ne4 {[%clk 0:01:24]}  Nxe4 {[%clk 0:00:59]} 19. Qxe4 {[%clk 0:01:25]}  Qxd6 {[%clk 0:00:51]} 20. Bf4 {[%clk 0:01:24]}  Qe7 {[%clk 0:00:43]} 21. Bd2 {[%clk 0:01:15]}  Rd8 {[%clk 0:00:22]} 22. b4 {[%clk 0:00:59]}  axb4 {[%clk 0:00:20]} 23. Bxb4 {[%clk 0:00:59]}  Nxb4 {[%clk 0:00:14]} 24. Qxb7 {[%clk 0:00:57]}  Qf8 {[%clk 0:00:13]} 25. Qxb6 {[%clk 0:00:55]}  Nd5 {[%clk 0:00:12]} 26. Qb2 {[%clk 0:00:43]}  g6 {[%clk 0:00:09]} 27. a4 {[%clk 0:00:43]}  Ra5 {[%clk 0:00:09]} 28. Bf1 {[%clk 0:00:35]}  Rb8 {[%clk 0:00:09]} 29. Bb5 {[%clk 0:00:35]}  Nc7 {[%clk 0:00:07]} 30. Qc3 {[%clk 0:00:33]}  Ra7 {[%clk 0:00:07]} 31. Rab1 {[%clk 0:00:29]}  Nxb5 {[%clk 0:00:07]} 32. axb5 {[%clk 0:00:30]}  Rab7 {[%clk 0:00:07]} 33. Qc6 {[%clk 0:00:29]}  Rb6 {[%clk 0:00:06]} 34. Qc4 {[%clk 0:00:28]}  Qe8 {[%clk 0:00:06]} 35. Rdc1 {[%clk 0:00:18]}  Rxb5 {[%clk 0:00:06]} 36. Rxb5 {[%clk 0:00:18]}  Qxb5 {[%clk 0:00:05]} 37. Qf4 {[%clk 0:00:19]}  Qe8 {[%clk 0:00:03]} 38. h4 {[%clk 0:00:18]}  Rc8 {[%clk 0:00:04]} 39. Re1 {[%clk 0:00:18]}  h5 {[%clk 0:00:04]} 40. Qf6 {[%clk 0:00:18]}  Qf8 {[%clk 0:00:04]} 41. Qa1 {[%clk 0:00:16]}  Qg7 {[%clk 0:00:05]} 42. Qa6 {[%clk 0:00:16]}  Rd8 {[%clk 0:00:05]} 43. Qa5 {[%clk 0:00:16]}  Qd4 {[%clk 0:00:05]} 44. Re3 {[%clk 0:00:15]}  Qd5 {[%clk 0:00:05]} 45. Qa3 {[%clk 0:00:14]}  Qd1+ {[%clk 0:00:05]} 46. Kg2 {[%clk 0:00:13]}  Qd6 {[%clk 0:00:06]} 47. Qb3 {[%clk 0:00:11]}  Qd5+ {[%clk 0:00:07]} 48. Qxd5 {[%clk 0:00:11]}  Rxd5 {[%clk 0:00:07]} 49. Ra3 {[%clk 0:00:11]}  Kg7 {[%clk 0:00:08]} 50. Ra7 {[%clk 0:00:11]}  Re5 {[%clk 0:00:08]} 51. Kf3 {[%clk 0:00:12]}  Rf5+ {[%clk 0:00:08]} 52. Ke3 {[%clk 0:00:12]}  Rb5 {[%clk 0:00:09]} 53. Kf3 {[%clk 0:00:13]}  Rb3+ {[%clk 0:00:10]} 54. Kg2 {[%clk 0:00:12]}  Rb8 {[%clk 0:00:11]} 55. Rc7 {[%clk 0:00:13]}  Rh8 {[%clk 0:00:11]} 56. Ra7 {[%clk 0:00:13]}  Rh6 {[%clk 0:00:12]} 57. Rb7 {[%clk 0:00:13]}  Rh7 {[%clk 0:00:13]} 58. Ra7 {[%clk 0:00:14]}  Rh8 {[%clk 0:00:13]} 59. Rb7 {[%clk 0:00:15]}  Ra8 {[%clk 0:00:14]} 60. Rc7 {[%clk 0:00:14]}  Ra2 {[%clk 0:00:14]} 61. Rb7 {[%clk 0:00:12]}  Ra3 {[%clk 0:00:15]} 62. Rc7 {[%clk 0:00:12]}  Ra4 {[%clk 0:00:15]} 63. Rb7 {[%clk 0:00:13]}  Kf6 {[%clk 0:00:16]} 64. Rc7 {[%clk 0:00:13]}  e5 {[%clk 0:00:16]} 65. Rc6+ {[%clk 0:00:13]}  Kf5 {[%clk 0:00:16]} 66. Rc7 {[%clk 0:00:13]}  f6 {[%clk 0:00:16]} 67. Rc5 {[%clk 0:00:14]}  g5 {[%clk 0:00:15]} 68. hxg5 {[%clk 0:00:14]}  Kxg5 {[%clk 0:00:16]} 69. Rb5 {[%clk 0:00:14]}  h4 {[%clk 0:00:14]} 70. gxh4+ {[%clk 0:00:13]}  Rxh4 {[%clk 0:00:15]} 71. Kg3 {[%clk 0:00:12]}  Rg4+ {[%clk 0:00:14]} 72. Kf3 {[%clk 0:00:12]}  Kf5 {[%clk 0:00:14]} 73. Ke3 {[%clk 0:00:12]}  Ra4 {[%clk 0:00:14]} 74. f3 {[%clk 0:00:12]}  Ra2 {[%clk 0:00:13]} 75. Rc5 {[%clk 0:00:11]}  Ra3+ {[%clk 0:00:11]} 76. Kf2 {[%clk 0:00:10]}  Ra4 {[%clk 0:00:12]} 77. Kg3 {[%clk 0:00:09]}  Rb4 {[%clk 0:00:09]} 78. Ra5 {[%clk 0:00:09]}  Rb8 {[%clk 0:00:10]} 79. Rc5 {[%clk 0:00:09]}  Rg8+ {[%clk 0:00:10]} 80. Kf2 {[%clk 0:00:09]}  Rh8 {[%clk 0:00:10]} 81. Ra5 {[%clk 0:00:09]}  Rh5 {[%clk 0:00:11]} 82. Ke3 {[%clk 0:00:08]}  Rh2 {[%clk 0:00:10]} 83. Rb5 {[%clk 0:00:08]}  Rh3 {[%clk 0:00:10]} 84. Ra5 {[%clk 0:00:07]}  Kg5 {[%clk 0:00:10]} 85. Ke4 {[%clk 0:00:07]}  Rh4+ {[%clk 0:00:07]} 86. Ke3 {[%clk 0:00:08]}  Rb4 {[%clk 0:00:08]} 87. Rc5 {[%clk 0:00:06]}  Ra4 {[%clk 0:00:07]} 88. Rb5 {[%clk 0:00:07]}  Ra3+ {[%clk 0:00:04]} 89. Kf2 {[%clk 0:00:05]}  Kh4 {[%clk 0:00:05]} 90. Rb4+ {[%clk 0:00:05]}  Kg5 {[%clk 0:00:04]} 91. Rg4+ {[%clk 0:00:06]}  Kf5 {[%clk 0:00:04]} 92. Rb4 {[%clk 0:00:06]}  Ra2+ {[%clk 0:00:04]} 93. Kg3 {[%clk 0:00:06]}  Ra5 {[%clk 0:00:05]} 94. Rc4 {[%clk 0:00:05]}  Rd5 {[%clk 0:00:05]} 95. Rb4 {[%clk 0:00:05]}  Rd4 {[%clk 0:00:05]} 96. Rb6 {[%clk 0:00:05]}  Kg5 {[%clk 0:00:05]} 97. Rb8 {[%clk 0:00:05]}  Rd3 {[%clk 0:00:05]} 98. Kf2 {[%clk 0:00:04]}  Kf4 {[%clk 0:00:04]} 99. Rb4+ {[%clk 0:00:03]}  Rd4 {[%clk 0:00:05]} 100. Rb2 {[%clk 0:00:03]}  f5 {[%clk 0:00:05]} 101. Ra2 {[%clk 0:00:03]}  Rc4 {[%clk 0:00:05]} 102. Rb2 {[%clk 0:00:02]}  Ra4 {[%clk 0:00:05]} 103. Rc2 {[%clk 0:00:02]}  Rd4 {[%clk 0:00:05]} 104. Rb2 {[%clk 0:00:02]}  Rc4 {[%clk 0:00:05]} 105. Ra2 {[%clk 0:00:02]}  Rb4 {[%clk 0:00:05]} 106. Rc2 {[%clk 0:00:02]}  Rd4 {[%clk 0:00:05]} 107. Rb2 {[%clk 0:00:02]}  Rc4 {[%clk 0:00:05]} 108. Ra2 {[%clk 0:00:03]}  Kg5 {[%clk 0:00:05]} 109. Rb2 {[%clk 0:00:03]}  Rc7 {[%clk 0:00:05]} 110. Ra2 {[%clk 0:00:04]}  Rh7 {[%clk 0:00:05]} 111. Ra5 {[%clk 0:00:04]}  Kf4 {[%clk 0:00:03]} 112. Ra4+ {[%clk 0:00:03]}  e4 {[%clk 0:00:04]} 113. fxe4 {[%clk 0:00:04]}  fxe4 {[%clk 0:00:04]} 114. Rb4 {[%clk 0:00:05]}  Rh2+ {[%clk 0:00:03]} 115. Kg1 {[%clk 0:00:05]}  Ra2 {[%clk 0:00:02]} 116. Kf1 {[%clk 0:00:05]}  Kf3 {[%clk 0:00:02]} 117. Rb8 {[%clk 0:00:04]}  Ra1+ {[%clk 0:00:02]} 0-1


[Site "https://www.chess.com"]

[Event "Titled Tuesday Blitz August 17 2021"]
[White "Kadam, Om Manish"]
[Black "Krishnakumar, Sriram"]
[WhiteFideId "45076294"]
[BlackFideId "30915856"]
[WhiteElo "1729"]
[BlackElo "2363"]
[Result "1-0"]
[Round "04"]
[TimeControl "180+1"]
[Date "2021.08.18"]
[WhiteClock "0:01:48"]
[BlackClock "0:00:34"]

1. e4 {[%clk 0:03:00]}  e5 {[%clk 0:02:59]} 2. Nf3 {[%clk 0:03:00]}  Nc6 {[%clk 0:02:58]} 3. Bc4 {[%clk 0:03:01]}  Bc5 {[%clk 0:02:58]} 4. c3 {[%clk 0:03:01]}  Nf6 {[%clk 0:02:57]} 5. d3 {[%clk 0:03:01]}  d6 {[%clk 0:02:57]} 6. b4 {[%clk 0:03:01]}  Bb6 {[%clk 0:02:56]} 7. a4 {[%clk 0:03:01]}  a5 {[%clk 0:02:56]} 8. b5 {[%clk 0:03:02]}  Ne7 {[%clk 0:02:56]} 9. Nbd2 {[%clk 0:03:02]}  Ng6 {[%clk 0:02:56]} 10. Bb3 {[%clk 0:03:03]}  Nf4 {[%clk 0:02:55]} 11. O-O {[%clk 0:03:03]}  h5 {[%clk 0:02:54]} 12. Nc4 {[%clk 0:03:03]}  Ng4 {[%clk 0:02:36]} 13. Bxf4 {[%clk 0:02:58]}  exf4 {[%clk 0:02:36]} 14. Nxb6 {[%clk 0:02:59]}  cxb6 {[%clk 0:02:35]} 15. h3 {[%clk 0:02:59]}  Be6 {[%clk 0:02:32]} 16. Nd4 {[%clk 0:02:55]}  Bxb3 {[%clk 0:02:26]} 17. Qxb3 {[%clk 0:02:56]}  Ne5 {[%clk 0:02:27]} 18. Qd5 {[%clk 0:02:55]}  Qd7 {[%clk 0:02:20]} 19. Nf5 {[%clk 0:02:53]}  O-O-O {[%clk 0:02:17]} 20. d4 {[%clk 0:02:50]}  Ng6 {[%clk 0:02:08]} 21. c4 {[%clk 0:02:42]}  Qe6 {[%clk 0:01:56]} 22. Nxg7 {[%clk 0:02:37]}  Qxd5 {[%clk 0:01:55]} 23. cxd5 {[%clk 0:02:38]}  Nh4 {[%clk 0:01:52]} 24. g3 {[%clk 0:02:28]}  Rhg8 {[%clk 0:01:51]} 25. gxh4 {[%clk 0:02:23]}  Rxg7+ {[%clk 0:01:50]} 26. Kh2 {[%clk 0:02:23]}  Re8 {[%clk 0:01:46]} 27. Rae1 {[%clk 0:02:14]}  Kd7 {[%clk 0:01:39]} 28. Rg1 {[%clk 0:02:14]}  Rxg1 {[%clk 0:01:38]} 29. Kxg1 {[%clk 0:02:14]}  f6 {[%clk 0:01:38]} 30. Kg2 {[%clk 0:02:15]}  f5 {[%clk 0:01:35]} 31. Kf3 {[%clk 0:02:14]}  fxe4+ {[%clk 0:01:35]} 32. Rxe4 {[%clk 0:02:14]}  Rc8 {[%clk 0:01:34]} 33. Rxf4 {[%clk 0:02:13]}  Rc3+ {[%clk 0:01:30]} 34. Ke4 {[%clk 0:02:12]}  Rxh3 {[%clk 0:01:30]} 35. f3 {[%clk 0:02:11]}  Rh1 {[%clk 0:01:29]} 36. Rf7+ {[%clk 0:02:11]}  Kc8 {[%clk 0:01:25]} 37. Kf5 {[%clk 0:02:12]}  Rxh4 {[%clk 0:01:25]} 38. f4 {[%clk 0:02:11]}  Rg4 {[%clk 0:01:22]} 39. Ke6 {[%clk 0:02:11]}  Rg6+ {[%clk 0:01:21]} 40. Ke7 {[%clk 0:02:03]}  Rh6 {[%clk 0:01:19]} 41. f5 {[%clk 0:02:04]}  h4 {[%clk 0:01:19]} 42. Rg7 {[%clk 0:02:01]}  h3 {[%clk 0:01:19]} 43. Rg1 {[%clk 0:02:01]}  Rh7+ {[%clk 0:01:14]} 44. Kxd6 {[%clk 0:01:59]}  Rh6+ {[%clk 0:01:06]} 45. Ke7 {[%clk 0:01:59]}  Rh7+ {[%clk 0:01:06]} 46. Ke6 {[%clk 0:01:59]}  Rh8 {[%clk 0:00:54]} 47. f6 {[%clk 0:01:42]}  h2 {[%clk 0:00:52]} 48. Rh1 {[%clk 0:01:42]}  Kd8 {[%clk 0:00:52]} 49. f7 {[%clk 0:01:43]}  Rh6+ {[%clk 0:00:52]} 50. Kf5 {[%clk 0:01:43]}  Rh8 {[%clk 0:00:52]} 51. Kg6 {[%clk 0:01:43]}  Ke7 {[%clk 0:00:51]} 52. Kg7 {[%clk 0:01:43]}  Rd8 {[%clk 0:00:28]} 53. Re1+ {[%clk 0:01:43]}  Kd6 {[%clk 0:00:28]} 54. f8=Q+ {[%clk 0:01:44]}  Rxf8 {[%clk 0:00:29]} 55. Kxf8 {[%clk 0:01:45]}  Kxd5 {[%clk 0:00:30]} 56. Rh1 {[%clk 0:01:44]}  Kxd4 {[%clk 0:00:31]} 57. Rxh2 {[%clk 0:01:45]}  Kc5 {[%clk 0:00:32]} 58. Rh7 {[%clk 0:01:46]}  Kb4 {[%clk 0:00:33]} 59. Rxb7 {[%clk 0:01:46]}  Kxa4 {[%clk 0:00:33]} 60. Rxb6 {[%clk 0:01:47]}  Kb4 {[%clk 0:00:34]} 61. Rb8 {[%clk 0:01:46]}  a4 {[%clk 0:00:34]} 62. b6 {[%clk 0:01:47]}  a3 {[%clk 0:00:35]} 63. b7 {[%clk 0:01:47]}  a2 {[%clk 0:00:34]} 64. Ra8 {[%clk 0:01:48]} 1-0


[Site "https://www.chess.com"]

[Event "Titled Tuesday Blitz August 17 2021"]
[White "Kamsky, Gata"]
[Black "Shkapenko, Pavel"]
[WhiteFideId "2000024"]
[BlackFideId "4151933"]
[WhiteElo "2644"]
[BlackElo "2386"]
[Result "1/2-1/2"]
[Round "04"]
[TimeControl "180+1"]
[Date "2021.08.17"]
[WhiteClock "0:00:29"]
[BlackClock "0:00:15"]

1. d4 {[%clk 0:03:00]}  Nf6 {[%clk 0:02:57]} 2. Nf3 {[%clk 0:03:00]}  e6 {[%clk 0:02:48]} 3. Bf4 {[%clk 0:02:59]}  c5 {[%clk 0:02:48]} 4. e3 {[%clk 0:02:59]}  cxd4 {[%clk 0:02:47]} 5. exd4 {[%clk 0:02:59]}  b6 {[%clk 0:02:40]} 6. Nbd2 {[%clk 0:02:58]}  Bb7 {[%clk 0:02:27]} 7. Bd3 {[%clk 0:02:54]}  Be7 {[%clk 0:02:17]} 8. h3 {[%clk 0:02:53]}  d6 {[%clk 0:01:58]} 9. O-O {[%clk 0:02:52]}  O-O {[%clk 0:01:57]} 10. Bh2 {[%clk 0:02:50]}  Re8 {[%clk 0:01:51]} 11. a4 {[%clk 0:02:49]}  Nc6 {[%clk 0:01:50]} 12. Re1 {[%clk 0:02:46]}  Bf8 {[%clk 0:01:50]} 13. Ne4 {[%clk 0:02:10]}  Nb4 {[%clk 0:01:45]} 14. Nxf6+ {[%clk 0:02:08]}  Qxf6 {[%clk 0:01:45]} 15. Be4 {[%clk 0:02:04]}  Bxe4 {[%clk 0:01:42]} 16. Rxe4 {[%clk 0:02:04]}  Rac8 {[%clk 0:01:29]} 17. c3 {[%clk 0:02:02]}  Nd5 {[%clk 0:01:25]} 18. Qe2 {[%clk 0:01:59]}  Qd8 {[%clk 0:01:21]} 19. c4 {[%clk 0:01:41]}  Nf6 {[%clk 0:01:20]} 20. Re3 {[%clk 0:01:41]}  d5 {[%clk 0:01:17]} 21. b3 {[%clk 0:01:40]}  dxc4 {[%clk 0:01:11]} 22. bxc4 {[%clk 0:01:39]}  Bd6 {[%clk 0:01:11]} 23. Ne5 {[%clk 0:01:37]}  Qc7 {[%clk 0:01:02]} 24. Qf3 {[%clk 0:01:33]}  Qe7 {[%clk 0:00:54]} 25. Rc1 {[%clk 0:01:14]}  Nd7 {[%clk 0:00:49]} 26. Bf4 {[%clk 0:01:08]}  Nxe5 {[%clk 0:00:38]} 27. dxe5 {[%clk 0:01:08]}  Bc5 {[%clk 0:00:38]} 28. Rd3 {[%clk 0:01:08]}  Red8 {[%clk 0:00:36]} 29. Rcd1 {[%clk 0:01:08]}  Rxd3 {[%clk 0:00:35]} 30. Rxd3 {[%clk 0:01:06]}  Rd8 {[%clk 0:00:32]} 31. g3 {[%clk 0:00:54]}  h6 {[%clk 0:00:30]} 32. h4 {[%clk 0:00:53]}  Qe8 {[%clk 0:00:27]} 33. Rxd8 {[%clk 0:00:50]}  Qxd8 {[%clk 0:00:28]} 34. Kg2 {[%clk 0:00:38]}  Qd4 {[%clk 0:00:26]} 35. Be3 {[%clk 0:00:32]}  Qxc4 {[%clk 0:00:18]} 36. Bxc5 {[%clk 0:00:29]}  Qxc5 {[%clk 0:00:16]} 37. Qa8+ {[%clk 0:00:29]}  Kh7 {[%clk 0:00:16]} 38. Qxa7 {[%clk 0:00:29]}  Qd5+ {[%clk 0:00:15]} 1/2-1/2


[Site "https://www.chess.com"]

[Event "Titled Tuesday Blitz August 17 2021"]
[White "Kononenko, Dmitry"]
[Black "Maghsoodloo, Parham"]
[WhiteFideId "14113538"]
[BlackFideId "12539929"]
[WhiteElo "2276"]
[BlackElo "2601"]
[Result "0-1"]
[Round "04"]
[TimeControl "180+1"]
[Date "2021.08.17"]
[WhiteClock "0:00:01"]
[BlackClock "0:00:25"]

1. d4 {[%clk 0:02:59]}  Nf6 {[%clk 0:02:59]} 2. c4 {[%clk 0:02:59]}  e6 {[%clk 0:02:59]} 3. g3 {[%clk 0:02:59]}  d5 {[%clk 0:02:59]} 4. Nf3 {[%clk 0:02:57]}  Be7 {[%clk 0:02:58]} 5. Bg2 {[%clk 0:02:57]}  O-O {[%clk 0:02:58]} 6. O-O {[%clk 0:02:58]}  Nbd7 {[%clk 0:02:58]} 7. Qc2 {[%clk 0:02:57]}  c6 {[%clk 0:02:58]} 8. Rd1 {[%clk 0:02:57]}  b6 {[%clk 0:02:59]} 9. Ne5 {[%clk 0:02:54]}  Bb7 {[%clk 0:02:50]} 10. cxd5 {[%clk 0:02:53]}  cxd5 {[%clk 0:02:45]} 11. Nc6 {[%clk 0:02:53]}  Bxc6 {[%clk 0:02:45]} 12. Qxc6 {[%clk 0:02:53]}  a6 {[%clk 0:02:25]} 13. Qc2 {[%clk 0:02:43]}  b5 {[%clk 0:02:22]} 14. Nc3 {[%clk 0:02:41]}  Nb6 {[%clk 0:02:19]} 15. Bf4 {[%clk 0:02:06]}  Rc8 {[%clk 0:02:17]} 16. a3 {[%clk 0:02:03]}  Nc4 {[%clk 0:02:12]} 17. Rac1 {[%clk 0:02:02]}  Qa5 {[%clk 0:02:10]} 18. Qb3 {[%clk 0:01:57]}  h6 {[%clk 0:02:09]} 19. h4 {[%clk 0:01:56]}  Rfd8 {[%clk 0:02:09]} 20. e4 {[%clk 0:01:50]}  dxe4 {[%clk 0:02:08]} 21. Nxe4 {[%clk 0:01:51]}  Nd5 {[%clk 0:02:03]} 22. Be3 {[%clk 0:01:46]}  Qa4 {[%clk 0:01:48]} 23. Qxa4 {[%clk 0:01:02]}  bxa4 {[%clk 0:01:48]} 24. Bd2 {[%clk 0:00:55]}  Nxb2 {[%clk 0:01:46]} 25. Rxc8 {[%clk 0:00:54]}  Rxc8 {[%clk 0:01:46]} 26. Ra1 {[%clk 0:00:48]}  Rc2 {[%clk 0:01:36]} 27. Bc1 {[%clk 0:00:43]}  Nd3 {[%clk 0:01:30]} 28. Be3 {[%clk 0:00:44]}  f5 {[%clk 0:01:23]} 29. Nc5 {[%clk 0:00:35]}  Nxe3 {[%clk 0:00:50]} 30. Nxd3 {[%clk 0:00:31]}  Nxg2 {[%clk 0:00:49]} 31. Kxg2 {[%clk 0:00:30]}  Bf6 {[%clk 0:00:49]} 32. Ne5 {[%clk 0:00:22]}  Rd2 {[%clk 0:00:44]} 33. Nf3 {[%clk 0:00:10]}  Bxd4 {[%clk 0:00:43]} 34. Nxd4 {[%clk 0:00:11]}  Rxd4 {[%clk 0:00:43]} 35. Rb1 {[%clk 0:00:11]}  Kf7 {[%clk 0:00:40]} 36. Rb6 {[%clk 0:00:11]}  Rd3 {[%clk 0:00:40]} 37. Rxa6 {[%clk 0:00:11]}  Rxa3 {[%clk 0:00:41]} 38. f4 {[%clk 0:00:11]}  h5 {[%clk 0:00:28]} 39. Ra7+ {[%clk 0:00:08]}  Kf6 {[%clk 0:00:27]} 40. Ra6 {[%clk 0:00:09]}  Ra2+ {[%clk 0:00:26]} 41. Kf3 {[%clk 0:00:03]}  a3 {[%clk 0:00:26]} 42. Ke3 {[%clk 0:00:02]}  Ra1 {[%clk 0:00:25]} 43. Kf2 {[%clk 0:00:01]}  Ke7 {[%clk 0:00:25]} 0-1


[Site "https://www.chess.com"]

[Event "Titled Tuesday Blitz August 17 2021"]
[White "Krasilnikov, Evgeni"]
[Black "Bach, Ngoc Thuy Duong"]
[WhiteFideId "4139739"]
[BlackFideId "12408956"]
[WhiteElo "2295"]
[BlackElo "1896"]
[Result "1/2-1/2"]
[Round "04"]
[TimeControl "180+1"]
[Date "2021.08.18"]
[WhiteClock "0:00:12"]
[BlackClock "0:00:10"]

1. e4 {[%clk 0:03:00]}  c5 {[%clk 0:02:59]} 2. c3 {[%clk 0:03:00]}  Nf6 {[%clk 0:02:58]} 3. e5 {[%clk 0:03:00]}  Nd5 {[%clk 0:02:58]} 4. d4 {[%clk 0:03:00]}  cxd4 {[%clk 0:02:59]} 5. Nf3 {[%clk 0:03:00]}  Nc6 {[%clk 0:02:58]} 6. Bc4 {[%clk 0:03:00]}  e6 {[%clk 0:02:54]} 7. cxd4 {[%clk 0:03:00]}  d6 {[%clk 0:02:52]} 8. O-O {[%clk 0:02:59]}  dxe5 {[%clk 0:02:45]} 9. dxe5 {[%clk 0:03:00]}  Be7 {[%clk 0:02:43]} 10. Qe2 {[%clk 0:03:00]}  Nb6 {[%clk 0:02:36]} 11. Bd3 {[%clk 0:02:58]}  Nb4 {[%clk 0:02:15]} 12. Be4 {[%clk 0:02:56]}  Qc7 {[%clk 0:02:12]} 13. Nc3 {[%clk 0:02:50]}  Bd7 {[%clk 0:02:11]} 14. Bf4 {[%clk 0:02:44]}  Qc4 {[%clk 0:01:59]} 15. Qd2 {[%clk 0:02:31]}  Rd8 {[%clk 0:01:44]} 16. a3 {[%clk 0:02:16]}  Bc6 {[%clk 0:01:40]} 17. Bxc6+ {[%clk 0:02:06]}  bxc6 {[%clk 0:01:34]} 18. Qe2 {[%clk 0:01:50]}  Qxf4 {[%clk 0:01:29]} 19. axb4 {[%clk 0:01:50]}  O-O {[%clk 0:01:26]} 20. Rxa7 {[%clk 0:01:49]}  Bxb4 {[%clk 0:01:26]} 21. Ne4 {[%clk 0:01:35]}  Nd5 {[%clk 0:01:20]} 22. h3 {[%clk 0:01:27]}  Ra8 {[%clk 0:01:05]} 23. Rfa1 {[%clk 0:01:23]}  Rxa7 {[%clk 0:01:05]} 24. Rxa7 {[%clk 0:01:23]}  Qc1+ {[%clk 0:01:00]} 25. Kh2 {[%clk 0:01:23]}  Nf4 {[%clk 0:00:58]} 26. Qe3 {[%clk 0:01:18]}  Qxe3 {[%clk 0:00:54]} 27. fxe3 {[%clk 0:01:19]}  Nd3 {[%clk 0:00:54]} 28. b3 {[%clk 0:01:13]}  h6 {[%clk 0:00:53]} 29. Rd7 {[%clk 0:01:09]}  Nc5 {[%clk 0:00:51]} 30. Nxc5 {[%clk 0:01:07]}  Bxc5 {[%clk 0:00:52]} 31. Nd4 {[%clk 0:01:01]}  Rb8 {[%clk 0:00:44]} 32. Nxc6 {[%clk 0:00:56]}  Rxb3 {[%clk 0:00:44]} 33. e4 {[%clk 0:00:46]}  Be3 {[%clk 0:00:41]} 34. Kg3 {[%clk 0:00:44]}  Bg5+ {[%clk 0:00:39]} 35. Kf2 {[%clk 0:00:43]}  Rc3 {[%clk 0:00:37]} 36. Nd4 {[%clk 0:00:36]}  Rd3 {[%clk 0:00:34]} 37. Ke2 {[%clk 0:00:31]}  Re3+ {[%clk 0:00:29]} 38. Kf1 {[%clk 0:00:30]}  Rxe4 {[%clk 0:00:30]} 39. Nf3 {[%clk 0:00:30]}  Bf4 {[%clk 0:00:28]} 40. Rd8+ {[%clk 0:00:28]}  Kh7 {[%clk 0:00:27]} 41. Rd7 {[%clk 0:00:28]}  Kg6 {[%clk 0:00:24]} 42. Nh4+ {[%clk 0:00:27]}  Kh5 {[%clk 0:00:24]} 43. Nf3 {[%clk 0:00:26]}  Bxe5 {[%clk 0:00:17]} 44. Rxf7 {[%clk 0:00:25]}  Bf6 {[%clk 0:00:14]} 45. Kf2 {[%clk 0:00:25]}  Kg6 {[%clk 0:00:13]} 46. Rd7 {[%clk 0:00:24]}  Ra4 {[%clk 0:00:13]} 47. g4 {[%clk 0:00:24]}  e5 {[%clk 0:00:12]} 48. Kg3 {[%clk 0:00:22]}  e4 {[%clk 0:00:12]} 49. Nh4+ {[%clk 0:00:22]}  Bxh4+ {[%clk 0:00:10]} 50. Kxh4 {[%clk 0:00:21]}  Ra3 {[%clk 0:00:10]} 51. Re7 {[%clk 0:00:20]}  e3 {[%clk 0:00:10]} 52. Kg3 {[%clk 0:00:20]}  Kf6 {[%clk 0:00:09]} 53. Re8 {[%clk 0:00:19]}  Kf7 {[%clk 0:00:09]} 54. Re4 {[%clk 0:00:18]}  Kf6 {[%clk 0:00:09]} 55. h4 {[%clk 0:00:17]}  g5 {[%clk 0:00:08]} 56. hxg5+ {[%clk 0:00:17]}  Kxg5 {[%clk 0:00:08]} 57. Re5+ {[%clk 0:00:15]}  Kf6 {[%clk 0:00:08]} 58. Re4 {[%clk 0:00:15]}  Kg5 {[%clk 0:00:08]} 59. Re5+ {[%clk 0:00:15]}  Kf6 {[%clk 0:00:09]} 60. Re4 {[%clk 0:00:15]}  e2+ {[%clk 0:00:08]} 61. Kf2 {[%clk 0:00:15]}  e1=Q+ {[%clk 0:00:08]} 62. Kxe1 {[%clk 0:00:14]}  Kg5 {[%clk 0:00:08]} 63. Kf2 {[%clk 0:00:14]}  Ra2+ {[%clk 0:00:08]} 64. Kg3 {[%clk 0:00:13]}  Ra3+ {[%clk 0:00:08]} 65. Kg2 {[%clk 0:00:13]}  Rb3 {[%clk 0:00:09]} 66. Kf2 {[%clk 0:00:13]}  Rc3 {[%clk 0:00:09]} 67. Kg2 {[%clk 0:00:13]}  Rc2+ {[%clk 0:00:10]} 68. Kg3 {[%clk 0:00:12]}  Rc3+ {[%clk 0:00:10]} 69. Kg2 {[%clk 0:00:12]}  Kh4 {[%clk 0:00:10]} 70. Kf2 {[%clk 0:00:12]}  Kg5 {[%clk 0:00:10]} 71. Kg2 {[%clk 0:00:12]} 1/2-1/2


[Site "https://www.chess.com"]